lending/lending_fUSD_20251022
["ID","MTS","AMOUNT","RATE_DAILY","PERIOD"]
[392009737,1761091215451,-159.37659103,0.00014999,2]
[392009740,1761091222234,-225.91537771,0.00014999,2]
[392009775,1761091502830,173.4,0.00029981,120]
[392009935,1761091680505,-178.92544117,0.00014899,2]
[392009936,1761091680530,-67.86701329,0.00014998,2]
[392009939,1761091685670,-191.14,0.00014998,2]
[392009944,1761091688996,-219.36754554,0.00014998,2]
[392010031,1761091832439,-300.0,0.00014998,2]
[392010032,1761091832448,-1200.0,0.00014998,2]
[392010033,1761091832457,-290.53913701,0.00014998,2]
[392010034,1761091832515,-9.46086299,0.00014998,2]
[392010035,1761091832525,-114.70803126,0.00014999,2]
[392010036,1761091832536,-500.0,0.00014999,2]
[392010037,1761091832545,-500.0,0.00014999,2]
[392010038,1761091832555,-500.0,0.00014999,2]
[392010039,1761091832565,-342.47833393,0.00014999,2]
[392010040,1761091832574,-300.0,0.00016415,2]
[392010041,1761091832583,-263.32908939,0.00016498,2]
[392010042,1761091832592,-1035.0,0.00016498,2]
[392010043,1761091832602,-299.26111843,0.00018704,2]
[392010044,1761091832611,-150.0,0.00018764,2]
[392010045,1761091832623,-165.65727064,0.00018764,2]
[392010046,1761091832632,-153.0,0.00018904,2]
[392010047,1761091832641,-167.0,0.00019699,2]
[392010048,1761091832651,-450.0,0.00019999,2]
[392010049,1761091832660,-41729.0,0.0002,7]
[392010050,1761091832671,-2051.0,0.00021204,2]
[392010051,1761091832680,-605.0,0.00021204,2]
[392010052,1761091832690,-1590.0,0.00021204,2]
[392010053,1761091832700,-1309.0,0.00021204,2]
[392010054,1761091832709,-817.0,0.00021204,2]
[392010055,1761091832719,-1268.0,0.00021204,2]
[392010056,1761091832728,-1000.0,0.000222,2]
[392010057,1761091832737,-786.0,0.00022502,2]
[392010058,1761091832746,-570.0,0.00022502,2]
[392010059,1761091832756,-3406.0,0.00022502,2]
[392010060,1761091832766,-500.0,0.00024203,2]
[392010061,1761091832775,-500.0,0.00024203,2]
[392010062,1761091832784,-500.0,0.00024203,2]
[392010063,1761091832795,-500.0,0.00024203,2]
[392010064,1761091832804,-500.0,0.00024203,2]
[392010066,1761091832813,-500.0,0.00024203,2]
[392010067,1761091832823,-500.0,0.00024203,2]
[392010068,1761091832832,-500.0,0.00024203,2]
[392010069,1761091832841,-500.0,0.00024203,2]
[392010070,1761091832850,-500.0,0.00024203,2]
[392010071,1761091832859,-500.0,0.00024203,2]
[392010072,1761091832868,-500.0,0.00024203,2]
[392010073,1761091832878,-500.0,0.00024203,2]
[392010074,1761091832887,-500.0,0.00024203,2]
[392010075,1761091832896,-347.29523153,0.00024203,2]
[392010076,1761091832905,-500.0,0.00024203,2]
[392010077,1761091832915,-500.0,0.00024203,2]
[392010078,1761091832924,-500.0,0.00024203,2]
[392010079,1761091832933,-500.0,0.00024203,2]
[392010080,1761091832942,-500.0,0.00024203,2]
[392010081,1761091832951,-500.0,0.00024203,2]
[392010082,1761091832960,-500.0,0.00024203,2]
[392010083,1761091832970,-500.0,0.00024203,2]
[392010084,1761091832979,-500.0,0.00024203,2]
[392010085,1761091832990,-5945.71,0.00025786,2]
[392010086,1761091832999,-999.99,0.00025786,2]
[392010087,1761091833008,-4933.29,0.00025786,2]
[392010088,1761091833017,-1000.0,0.000259,2]
[392010089,1761091833026,-436.999,0.00028089,18]
[392010090,1761091833035,-1000.0,0.00028697,2]
[392010091,1761091833046,-666.0,0.0002871,3]
[392010092,1761091833055,-205.98,0.00029521,7]
[392010093,1761091833064,-500.0,0.00029522,7]
[392010094,1761091833073,-500.0,0.00029522,7]
[392010095,1761091833083,-169.28925201,0.00029522,7]
[392010096,1761091833092,-500.0,0.00029522,7]
[392010097,1761091833102,-500.0,0.00029522,7]
[392010098,1761091833111,-500.0,0.00029522,7]
[392010099,1761091833121,-500.0,0.00029522,7]
[392010100,1761091833130,-500.0,0.00029522,7]
[392010101,1761091833140,-500.0,0.00029522,7]
[392010102,1761091833149,-500.0,0.00029522,7]
[392010103,1761091833159,-500.0,0.00029522,7]
[392010104,1761091833168,-500.0,0.00029522,7]
[392010105,1761091833177,-500.0,0.00029522,7]
[392010106,1761091833187,-800.0,0.00029522,7]
[392010107,1761091833195,-500.0,0.00029522,7]
[392010108,1761091833205,-500.0,0.00029522,7]
[392010109,1761091833214,-500.0,0.00029522,7]
[392010110,1761091833223,-500.0,0.00029522,7]
[392010111,1761091833232,-500.0,0.00029522,7]
[392010112,1761091833241,-500.0,0.00029522,7]
[392010113,1761091833250,-500.0,0.00029522,7]
[392010114,1761091833259,-500.0,0.00029522,7]
[392010115,1761091833269,-500.0,0.00029522,7]
[392010116,1761091833279,-500.0,0.00029522,7]
[392010117,1761091833288,-500.0,0.00029522,7]
[392010118,1761091833298,-500.0,0.00029522,7]
[392010119,1761091833308,-600.0,0.00029522,7]
[392010120,1761091833317,-500.0,0.00029522,7]
[392010121,1761091833326,-124.11396034,0.00029522,7]
[392010122,1761091833339,-375.88603966,0.00029522,7]
[392010123,1761091833348,-908.97383506,0.00029522,7]
[392010124,1761091833357,-500.0,0.00029522,7]
[392010125,1761091833367,-500.0,0.00029522,7]
[392010126,1761091833377,-500.0,0.00029522,7]
[392010127,1761091833386,-500.0,0.00029522,7]
[392010128,1761091833395,-500.0,0.00029522,7]
[392010129,1761091833404,-500.0,0.00029522,7]
[392010130,1761091833415,-500.0,0.00029522,7]
[392010131,1761091833424,-500.0,0.00029522,7]
[392010132,1761091833434,-500.0,0.00029522,7]
[392010133,1761091833443,-500.0,0.00029522,7]
[392010134,1761091833452,-500.0,0.00029522,7]
[392010135,1761091833462,-500.0,0.00029522,7]
[392010136,1761091833471,-500.0,0.00029522,7]
[392010137,1761091833480,-500.0,0.00029522,7]
[392010138,1761091833489,-500.0,0.00029522,7]
[392010139,1761091833499,-500.0,0.00029522,7]
[392010140,1761091833508,-500.0,0.00029522,7]
[392010141,1761091833518,-500.0,0.00029522,7]
[392010142,1761091833527,-500.0,0.00029522,7]
[392010143,1761091833536,-500.0,0.00029522,7]
[392010144,1761091833546,-500.0,0.00029522,7]
[392010145,1761091833555,-500.0,0.00029522,7]
[392010146,1761091833565,-500.0,0.00029522,7]
[392010147,1761091833574,-877.71287862,0.00029522,7]
[392010148,1761091833583,-501.60530587,0.00029522,7]
[392010149,1761091833592,-500.0,0.00029522,7]
[392010150,1761091833602,-700.0,0.00029522,7]
[392010151,1761091833611,-500.0,0.00029522,7]
[392010152,1761091833623,-408.32130737,0.00029522,7]
[392010153,1761091833632,-200.0,0.00029522,7]
[392010154,1761091833641,-150.0,0.00029522,7]
[392010155,1761091833652,-150.0,0.00029522,7]
[392010156,1761091833661,-150.0,0.00029522,7]
[392010157,1761091833673,-150.0,0.00029522,7]
[392010158,1761091833682,-150.0,0.00029522,7]
[392010159,1761091833692,-200.0,0.00029577,7]
[392010160,1761091833702,-174.096698,0.00029588,14]
[392010161,1761091833711,-174.096698,0.00029588,14]
[392010162,1761091833721,-1044.310998,0.00029588,14]
[392010163,1761091833730,-1044.310998,0.00029588,14]
[392010164,1761091833740,-178.273893,0.00029588,14]
[392010165,1761091833749,-2708.465021,0.00029588,14]
[392010166,1761091833758,-2708.465021,0.00029588,14]
[392010167,1761091833768,-1044.310999,0.00029588,14]
[392010168,1761091833777,-1044.310999,0.00029588,14]
[392010169,1761091833787,-178.273893,0.00029588,14]
[392010170,1761091833797,-2708.465021,0.00029588,14]
[392010171,1761091833806,-2708.465021,0.00029588,14]
[392010172,1761091833815,-2088.621997,0.00029588,14]
[392010173,1761091833824,-2088.621997,0.00029588,14]
[392010174,1761091833833,-4199.761246,0.00029588,14]
[392010175,1761091833842,-4199.761246,0.00029588,14]
[392010176,1761091833852,-250.0,0.00029625,7]
[392010177,1761091833861,-151.33,0.00029769,2]
[392010178,1761091833872,-163.96,0.0002977,2]
[392010179,1761091833882,-205.98,0.00029795,7]
[392010180,1761091833892,-1325.32,0.00029854,2]
[392010181,1761091833902,-2981.28,0.00029871,2]
[392010182,1761091833912,-151.26189,0.000299,2]
[392010183,1761091833922,-151.26189,0.0002992,2]
[392010184,1761091833931,-200.0,0.00029958,2]
[392010185,1761091833940,-205.98,0.00030069,7]
[392010186,1761091834118,-707.04539564,0.000302,2]
[392010187,1761091834128,-151.0,0.000302,7]
[392010188,1761091834138,-152.06297962,0.000302,7]
[392010189,1761091834147,-1235.0,0.000302,7]
[392010190,1761091834156,-289.26622063,0.000302,7]
[392010191,1761091834165,-208.0,0.0003027,7]
[392010192,1761091834174,-205.98,0.00030343,7]
[392010193,1761091834184,-166.39,0.00030398,2]
[392010194,1761091834192,-208.0,0.00030421,2]
[392010195,1761091834202,-212.0,0.00030433,7]
[392010196,1761091834212,-208.0,0.0003045,2]
[392010197,1761091834222,-208.0,0.00030504,2]
[392010198,1761091834232,-300.0,0.00030537,2]
[392010199,1761091834241,-208.0,0.00030563,2]
[392010200,1761091834250,-208.0,0.00030576,2]
[392010201,1761091834259,-206.02,0.00030617,7]
[392010202,1761091834268,-168.0,0.00030701,2]
[392010203,1761091834277,-208.0,0.00030712,2]
[392010204,1761091834286,-212.0,0.00030774,2]
[392010205,1761091834297,-151.33,0.00030886,2]
[392010206,1761091834306,-168.0,0.00030903,2]
[392010207,1761091834316,-208.0,0.00030914,2]
[392010208,1761091834329,-282.79,0.00030964,30]
[392010209,1761091834339,-152.0,0.00031,120]
[392010210,1761091834348,-158.0,0.00031,120]
[392010211,1761091834358,-1425.0,0.00031086,2]
[392010212,1761091834367,-168.0,0.00031185,2]
[392010213,1761091834377,-168.0,0.00031192,7]
[392010214,1761091834386,-208.0,0.00031308,2]
[392010215,1761091834396,-1425.0,0.00031354,2]
[392010216,1761091834405,-208.0,0.00031429,2]
[392010217,1761091834414,-1425.0,0.00031438,2]
[392010218,1761091834423,-208.0,0.00031454,2]
[392010219,1761091834432,-162.092,0.000315,120]
[392010220,1761091834441,-155.56,0.00031533,15]
[392010221,1761091834451,-606.71,0.00031536,2]
[392010222,1761091834460,-160.79,0.00031545,15]
[392010223,1761091834470,-208.0,0.00031558,2]
[392010224,1761091834479,-169.00041418,0.0003158,15]
[392010225,1761091834488,-5795.66,0.000316,2]
[392010226,1761091834498,-155.56,0.00031633,15]
[392010227,1761091834508,-945.92,0.00031643,15]
[392010228,1761091834518,-945.92,0.00031643,15]
[392010229,1761091834531,-945.92,0.00031643,15]
[392010230,1761091834543,-945.92,0.00031643,15]
[392010231,1761091834553,-160.79,0.00031645,15]
[392010232,1761091834562,-1425.0,0.00031677,2]
[392010233,1761091834572,-208.0,0.00031744,2]
[392010234,1761091834582,-160.79,0.00031745,15]
[392010235,1761091834592,-1425.0,0.00031795,2]
[392010236,1761091834602,-300.0,0.000318,2]
[392010237,1761091834611,-300.0,0.000318,2]
[392010238,1761091834625,-300.0,0.000318,2]
[392010239,1761091834635,-300.0,0.000318,2]
[392010240,1761091834646,-344.75363738,0.000318,2]
[392010241,1761091834656,-1425.0,0.00031831,2]
[392010242,1761091834666,-160.81156535,0.00031845,15]
[392010243,1761091834676,-189.57400896,0.00031881,2]
[392010244,1761091834686,-200.0,0.00031893,2]
[392010245,1761091834697,-200.0,0.00031898,2]
[392010246,1761091834707,-200.0,0.00031898,2]
[392010247,1761091834717,-200.0,0.00031898,2]
[392010248,1761091834730,-200.0,0.000319,2]
[392010249,1761091834740,-200.0,0.000319,2]
[392010250,1761091834750,-200.0,0.000319,2]
[392010251,1761091834760,-200.0,0.00031901,2]
[392010252,1761091834770,-300.0,0.00031907,2]
[392010253,1761091834780,-945.92,0.00031917,15]
[392010254,1761091834791,-945.92,0.00031917,15]
[392010255,1761091834801,-1425.0,0.00031935,2]
[392010256,1761091834811,-1425.0,0.00031959,2]
[392010257,1761091834821,-200.0,0.00031982,2]
[392010258,1761091834831,-200.0,0.00031982,2]
[392010259,1761091834842,-200.0,0.00031982,2]
[392010260,1761091834852,-200.0,0.00031982,2]
[392010261,1761091834863,-200.0,0.00031982,2]
[392010262,1761091834873,-200.0,0.00031982,2]
[392010263,1761091834883,-200.0,0.00031982,2]
[392010264,1761091834893,-200.0,0.00031982,2]
[392010265,1761091834902,-200.0,0.00031982,2]
[392010266,1761091834913,-200.0,0.00031982,2]
[392010267,1761091834927,-200.0,0.00031982,2]
[392010268,1761091834939,-200.0,0.00031982,2]
[392010269,1761091834948,-200.0,0.00031982,2]
[392010270,1761091834958,-200.0,0.00031982,2]
[392010271,1761091834967,-200.0,0.00031982,2]
[392010272,1761091834977,-200.0,0.00031982,2]
[392010273,1761091834987,-200.0,0.00031982,2]
[392010274,1761091834997,-200.0,0.00031982,2]
[392010275,1761091835008,-200.0,0.00031982,2]
[392010276,1761091835017,-200.0,0.00031982,2]
[392010277,1761091835027,-200.0,0.00031982,2]
[392010278,1761091835037,-200.0,0.00031982,2]
[392010279,1761091835049,-200.0,0.00031982,2]
[392010280,1761091835059,-200.0,0.00031982,2]
[392010281,1761091835068,-200.0,0.00031982,2]
[392010282,1761091835078,-200.0,0.00031982,2]
[392010283,1761091835089,-200.0,0.00031982,2]
[392010284,1761091835099,-200.0,0.00031982,2]
[392010285,1761091835110,-200.0,0.00031982,2]
[392010286,1761091835120,-200.0,0.00031982,2]
[392010287,1761091835131,-200.0,0.00031982,2]
[392010288,1761091835141,-200.0,0.00031982,2]
[392010289,1761091835150,-200.0,0.00031982,2]
[392010290,1761091835160,-200.0,0.00031982,2]
[392010291,1761091835170,-200.0,0.00031982,2]
[392010292,1761091835180,-252.0,0.00031982,2]
[392010293,1761091835190,-212.0,0.00031986,2]
[392010294,1761091835200,-591.69348783,0.00031999,2]
[392010295,1761091835210,-500.0,0.00031999,2]
[392010296,1761091835221,-352.93470592,0.00031999,2]
[392010297,1761091835232,-500.0,0.00031999,2]
[392010298,1761091835242,-500.0,0.00031999,2]
[392010299,1761091835252,-20599.94047632,0.00032,120]
[392010300,1761091835262,-9085.39012184,0.00032,120]
[392010301,1761091835272,-204.72354312,0.00032,120]
[392010302,1761091835282,-161.61682775,0.00032,120]
[392010303,1761091835296,-198.06032086,0.00032,120]
[392010304,1761091835306,-171.8264069,0.00032,120]
[392010305,1761091835316,-256.00530408,0.00032,120]
[392010306,1761091835326,-176.83312215,0.00032,120]
[392010307,1761091835337,-315.84755379,0.00032,120]
[392010308,1761091835348,-476.03091061,0.00032,120]
[392010309,1761091835358,-558.76178446,0.00032,30]
[392010310,1761091835368,-2829.0,0.00032,2]
[392010311,1761091835379,-4999.999999,0.00032,2]
[392010312,1761091835389,-151.33,0.00032002,2]
[392010313,1761091835399,-996.22320665,0.00032039,2]
[392010314,1761091835411,-1425.0,0.00032113,2]
[392010315,1761091835421,-1425.0,0.00032169,2]
[392010316,1761091835431,-945.92,0.00032191,15]
[392010317,1761091835441,-945.92,0.00032191,15]
[392010318,1761091835451,-1425.0,0.000322,2]
[392010319,1761091835460,-1425.0,0.00032303,2]
[392010320,1761091835470,-1425.0,0.00032355,2]
[392010321,1761091835480,-22410.15,0.00032361,7]
[392010322,1761091835490,-55239.53870914,0.00032361,7]
[392010333,1761091838245,-16634.74129086,0.00032361,7]
[392010335,1761091838255,-1102.52,0.00032361,7]
[392010336,1761091838271,-352.73212293,0.00032362,2]
[392010337,1761091838287,-1425.0,0.00032363,2]
[392010338,1761091838298,-1425.0,0.00032442,2]
[392010339,1761091838307,-26518.79,0.00032456,7]
[392010340,1761091838317,-12098.99,0.00032456,7]
[392010341,1761091838326,-1848.03268689,0.00032456,7]
[392010342,1761091838459,-19154.46967311,0.00032456,7]
[392010343,1761091838470,-305.96311241,0.00032456,7]
[392010585,1761091840962,-279.95230002,0.00032456,7]
[392010587,1761091840974,-2717.612163,0.00032456,7]
[392010589,1761091840985,-1780.23746608,0.00032456,7]
[392010591,1761091840997,-293.7750774,0.00032456,7]
[392010593,1761091841009,-78.67752109,0.00032456,7]
[392010595,1761091841018,-326.60953546,0.00032465,15]
[392010597,1761091841028,-378.31423465,0.00032465,15]
[392010599,1761091841040,-240.99622989,0.00032465,15]
[392010600,1761091841050,-183.61606609,0.00032465,15]
[392010692,1761091842111,-1.6e-07,0.00032465,15]
[392010694,1761091842123,-762.30393375,0.00032465,15]
[392010696,1761091842133,-1425.0,0.00032493,2]
[392010698,1761091842143,-1425.0,0.00032527,2]
[392010700,1761091842152,-168.0,0.0003255,2]
[392010702,1761091842162,-1141.55420045,0.00032581,2]
[392010704,1761091842172,-1425.0,0.00032602,2]
[392010706,1761091842182,-152.0,0.00032607,4]
[392010708,1761091842193,-1000.0,0.00032618,2]
[392010709,1761091842202,-1000.0,0.00032622,2]
[392010711,1761091842215,-500.0,0.00032642,7]
[392010713,1761091842225,-500.0,0.00032642,7]
[392010715,1761091842235,-800.0,0.00032642,7]
[392010717,1761091842244,-1000.0,0.00032645,2]
[392010719,1761091842254,-1000.0,0.00032655,2]
[392010721,1761091842263,-1110.0,0.00032678,5]
[392010723,1761091842273,-1425.0,0.00032678,2]
[392010725,1761091842282,-1141.55420045,0.00032679,2]
[392010727,1761091842291,-168.0,0.00032679,2]
[392010729,1761091842305,-1000.0,0.00032683,2]
[392010731,1761091842316,-1000.0,0.00032688,2]
[392010733,1761091842326,-1425.0,0.00032738,2]
[392010735,1761091842335,-945.92,0.00032739,15]
[392010736,1761091842345,-945.92,0.00032739,15]
[392010738,1761091842354,-1000.0,0.00032749,2]
[392010741,1761091842367,-4985.48968002,0.00032756,2]
[392010743,1761091842377,-4985.48967999,0.00032758,2]
[392010744,1761091842386,-1425.0,0.0003276,2]
[392010746,1761091842396,-5000.0,0.00032766,2]
[392010748,1761091842405,-166.59867355,0.00032766,15]
[392010750,1761091842414,-403.21244499,0.00032767,2]
[392010752,1761091842423,-1000.0,0.00032768,2]
[392010754,1761091842432,-1000.0,0.00032769,2]
[392010755,1761091842441,-500.0,0.00032773,7]
[392010757,1761091842450,-1425.0,0.00032775,2]
[392010759,1761091842459,-157.52619279,0.00032776,2]
[392010761,1761091842468,-1141.55420045,0.00032776,2]
[392010763,1761091842477,-319.23345936,0.00032776,2]
[392010765,1761091842487,-208.19141226,0.00032776,6]
[392010767,1761091842496,-616.47136413,0.00032776,2]
[392010768,1761091842505,-243.56345567,0.00032776,2]
[392010770,1761091842513,-10657.2559208,0.0003279,2]
[392010772,1761091842523,-1000.0,0.00032799,2]
[392010774,1761091842532,-1000.0,0.00032799,2]
[392010776,1761091842541,-5795.66,0.000328,2]
[392010778,1761091842553,-337.77,0.000328,2]
[392010780,1761091842562,-1000.0,0.00032803,2]
[392010782,1761091842571,-1000.0,0.00032804,2]
[392010784,1761091842580,-1425.0,0.0003281,2]
[392010786,1761091842589,-1425.0,0.00032821,2]
[392010787,1761091842599,-1000.0,0.00032833,2]
[392010789,1761091842608,-168.0,0.00032838,2]
[392010791,1761091842617,-1000.0,0.00032838,2]
[392010793,1761091842629,-1425.0,0.00032839,2]
[392010795,1761091842638,-1000.0,0.0003284,2]
[392010797,1761091842647,-1000.0,0.00032847,2]
[392010799,1761091842656,-1000.0,0.00032847,2]
[392010800,1761091842667,-567.90089547,0.00032848,2]
[392010802,1761091842676,-103895.56738648,0.00032856,2]
[392010805,1761091842688,-3839.24170629,0.00032856,2]
[392010887,1761091843473,-2840.99048588,0.0003276,2]
[392010901,1761091843606,-942.89194055,0.0003276,2]
[392010904,1761091843628,-1201.60725356,0.0003276,2]
[392010907,1761091843645,-2731.50406444,0.00032856,2]
[392011208,1761091864734,432.93820459,0.00025288,120]
[392011218,1761091925493,200.0,0.00034278,30]
[392011219,1761091926164,200.0,0.00034278,30]
[392011220,1761091930441,200.0,0.00034278,30]
[392011222,1761091931453,327.36203836,0.00034278,30]
[392011280,1761092081950,33499.43727597,0.00034279,30]
[392011322,1761092471744,-166.69219998,0.00022988,2]
[392011323,1761092476563,-133.30780002,0.00022988,2]
[392011324,1761092476598,-145.83355085,0.00022988,2]
[392011325,1761092479097,-333.44444779,0.00022988,2]
[392011327,1761092718145,-255.92385,0.00015,2]
[392011328,1761092725023,-234.61837252,0.00015,2]
[392011329,1761092727922,-281.68956733,0.00015,2]
[392011330,1761092733642,-182.40920469,0.00015,2]
[392011331,1761092737008,-252.91331211,0.00015,2]
[392011333,1761092798293,-314.08928869,0.00014999,2]
[392011334,1761092843524,-188.2439767,0.000149,2]
[392011335,1761092843547,-267.62064784,0.00014973,2]
[392011337,1761092973219,154.78,0.00010279,2]
[392011338,1761092973420,154.78,0.0001082,2]
[392011339,1761092973846,154.78,0.00011361,2]
[392011340,1761092974106,154.78,0.00011902,2]
[392011341,1761092974555,154.78,0.00012443,2]
[392011342,1761092974667,154.78,0.00012984,2]
[392011343,1761092974866,154.78,0.00013525,2]
[392011344,1761092993718,-154.78,0.00014066,2]
[392011345,1761092993745,-11.72730986,0.00014607,2]
[392011346,1761093009517,-166.50731,0.00014534,2]
[392011347,1761093009539,-135.91241249,0.00014607,2]
[392011351,1761093031451,-7.14027765,0.00014607,2]
[392011353,1761093031460,-300.0,0.00014899,2]
[392011354,1761093031470,-49.89610955,0.00014899,2]
[392011355,1761093031481,-250.10389045,0.00014899,2]
[392011356,1761093031491,-876.82180436,0.00014899,2]
[392011357,1761093031511,-323.17819564,0.00014899,2]
[392011358,1761093031520,-300.0,0.00014899,2]
[392011359,1761093031530,-3589.56471638,0.000149,2]
[392011360,1761093031542,-746.24069382,0.000149,2]
[392011361,1761093031551,-188.2439767,0.000149,2]
[392011362,1761093031561,-799.08794032,0.000149,2]
[392011363,1761093031571,-502.33810716,0.00014973,2]
[392011364,1761093031580,-165.40253083,0.00014973,2]
[392011365,1761093031589,-214.3165714,0.00014973,2]
[392011366,1761093031599,-500.45473872,0.00014973,2]
[392011367,1761093031609,-500.0,0.00014973,2]
[392011368,1761093031619,-501.89347945,0.00014973,2]
[392011369,1761093031628,-213.72368549,0.00014973,2]
[392011370,1761093031638,-500.0,0.00014973,2]
[392011371,1761093031647,-501.55726296,0.00014973,2]
[392011372,1761093031656,-500.0,0.00014973,2]
[392011373,1761093031666,-232.37935216,0.00014973,2]
[392011374,1761093031676,-150.0,0.00014985,2]
[392011375,1761093031685,-150.0,0.00014998,2]
[392011376,1761093031695,-185.91071131,0.00014999,2]
[392011377,1761093031705,-414.18544148,0.00014999,2]
[392011378,1761093031715,-246.91248605,0.00014999,2]
[392011379,1761093031725,-500.0,0.00014999,2]
[392011380,1761093031734,-215.63022365,0.00014999,2]
[392011381,1761093031754,-81.4240705,0.00014999,2]
[392011382,1761093031764,-500.0,0.00014999,2]
[392011383,1761093031773,-500.0,0.00014999,2]
[392011384,1761093031783,-500.0,0.00014999,2]
[392011385,1761093031793,-500.0,0.00014999,2]
[392011386,1761093031802,-164.28420815,0.00014999,2]
[392011388,1761093031811,-500.0,0.00014999,2]
[392011390,1761093031820,-500.0,0.00014999,2]
[392011392,1761093031830,-500.0,0.00014999,2]
[392011393,1761093031840,-500.0,0.00014999,2]
[392011394,1761093031850,-500.0,0.00014999,2]
[392011395,1761093031862,-49881.37332811,0.00015,2]
[392011396,1761093031874,-454.9276565,0.00015,2]
[392011397,1761093031889,-195057.78972413,0.00015,2]
[392011398,1761093031901,-78197.17824938,0.00015,2]
[392011399,1761093031912,-402.00599618,0.00015,2]
[392011400,1761093031924,-1264.29844031,0.00015,2]
[392011401,1761093031935,-666.0,0.00015,2]
[392011402,1761093031946,-2557.9978215,0.00015,2]
[392011403,1761093031958,-5105.55691751,0.00015,2]
[392011404,1761093031981,-2177.3442,0.00015,2]
[392011405,1761093031993,-3973.0,0.00015,2]
[392011406,1761093032004,-30686.11197936,0.00015,2]
[392011407,1761093032016,-658.23230958,0.00015,2]
[392011410,1761093037630,-673.50472985,0.00014799,2]
[392011411,1761093037639,-315.63045098,0.000149,2]
[392011412,1761093037649,-674.87141086,0.00015,2]
[392011413,1761093037663,-685.46564739,0.00015,2]
[392011414,1761093037674,-1927.88773807,0.00015,2]
[392011415,1761093037685,-1000.21593725,0.00015,2]
[392011416,1761093037696,-5966.3072515,0.00015,2]
[392011432,1761093039560,-572787.02285739,0.00015,2]
[392011433,1761093039570,-52255.97471292,0.00015,2]
[392011434,1761093039668,-387.80369092,0.00015,2]
[392011444,1761093042504,-455.889,0.00015,2]
[392011445,1761093042615,-263.890089,0.00015,2]
[392011584,1761093045613,-10288.3720187,0.00015,2]
[392011588,1761093128751,-406.954,0.000147,2]
[392011589,1761093128780,-172.61467365,0.000148,2]
[392011590,1761093134121,-127.38532635,0.000148,2]
[392011591,1761093134143,-172.61467365,0.000148,2]
[392011592,1761093173355,-286.21739958,0.00014725,2]
[392011593,1761093218432,-195.0,0.00014725,2]
[392011594,1761093248391,-216.20232242,0.00014725,2]
[392011595,1761093251710,-195.0,0.00014725,2]
[392011596,1761093254853,-575.78607358,0.00014725,2]
[392011597,1761093254875,-77.38532635,0.000148,2]
[392011598,1761093254899,-174.09894561,0.000149,2]
[392011599,1761093254923,-250.0,0.00014935,2]
[392011600,1761093254950,-115.58993246,0.00014973,2]
[392011601,1761093260011,-250.0,0.00014973,2]
[392011602,1761093278394,-134.41006754,0.00014973,2]
[392011603,1761093278419,-30.30993246,0.00014991,2]
[392011604,1761093284446,-120.69006754,0.00014991,2]
[392011605,1761093284472,-94.56911776,0.00014991,2]
[392011606,1761093292658,-313.21870699,0.000149,2]
[392011607,1761093296115,-187.79262631,0.000149,2]
[392011608,1761093300493,-183.31,0.000149,2]
[392011610,1761093413393,-216.202322,0.00014824,2]
[392011611,1761093413417,-110.5636891,0.00014899,2]
[392011700,1761093666372,502.1839567,0.00030137,120]